bitfinex-derivatives/quotes_BTCF0:USTF0_20250902
["timestamp","ask_amount","ask_price","bid_price","bid_amount"]
[1756795016272,2.04282758,110580.0,110570.0,0.09695898]
[1756795016673,2.04282758,110580.0,110570.0,0.13151898]
[1756795017374,2.04282758,110580.0,110570.0,0.09695898]
[1756795017576,2.04282758,110580.0,110570.0,0.13151898]
[1756795018668,2.04482758,110580.0,110570.0,0.09695898]
[1756795018877,2.04782758,110580.0,110570.0,0.13151898]
[1756795019380,2.04882758,110580.0,110570.0,0.13151898]
[1756795019573,1.58192,110580.0,110570.0,0.09695898]
[1756795019880,2.04982758,110580.0,110570.0,0.09695898]
[1756795020077,2.53328137,110580.0,110570.0,0.04859898]
[1756795020576,2.53328137,110580.0,110560.0,0.04859898]
[1756795020773,0.82770758,110570.0,110560.0,0.04859898]
[1756795021074,1.17770758,110570.0,110560.0,0.07312898]
[1756795021279,1.17770758,110570.0,110560.0,0.09695898]
[1756795021668,1.17770758,110570.0,110560.0,0.04859898]
[1756795022278,1.18070758,110570.0,110550.0,0.52646086]
[1756795022472,1.32086758,110560.0,110550.0,0.52646086]
[1756795022667,1.64086758,110560.0,110550.0,0.52646086]
[1756795022871,1.64086758,110560.0,110550.0,0.16566086]
[1756795023470,1.53476,110560.0,110550.0,0.09699898]
[1756795023670,1.76822788,110560.0,110550.0,0.13155898]
[1756795024782,1.76922788,110560.0,110550.0,0.13155898]
[1756795024974,1.76922788,110560.0,110550.0,0.09699898]
[1756795025478,1.77122788,110560.0,110550.0,0.09699898]
[1756795025680,1.77122788,110560.0,110550.0,0.04863898]
[1756795025880,1.78018304,110560.0,110550.0,0.04863898]
[1756795026580,1.86970424,110560.0,110550.0,4e-05]
[1756795026980,1.7984884,110560.0,110550.0,4e-05]
[1756795027182,2.28195628,110560.0,110550.0,4e-05]
[1756795027389,2.0484884,110560.0,110550.0,4e-05]
[1756795027881,2.28195628,110560.0,110550.0,4e-05]
[1756795028578,1.1945284,110560.0,110550.0,4e-05]
[1756795028882,2.0473684,110560.0,110550.0,4e-05]
[1756795029383,1.81390052,110560.0,110550.0,4e-05]
[1756795029685,2.0473684,110560.0,110550.0,4e-05]
[1756795031774,2.11822238,110560.0,110550.0,4e-05]
[1756795032289,1.0319145,110560.0,110550.0,4e-05]
[1756795032486,2.11786238,110560.0,110550.0,4e-05]
[1756795033586,1.26538238,110560.0,110550.0,0.04785]
[1756795033781,2.11738238,110560.0,110550.0,0.08347]
[1756795034389,2.11738238,110560.0,110550.0,0.04785]
[1756795035386,0.4211145,110560.0,110550.0,0.09729]
[1756795035591,0.34130536,110560.0,110550.0,0.62935686]
[1756795038787,0.34130536,110560.0,110550.0,0.99015686]
[1756795038988,0.34130536,110560.0,110550.0,1.00611843]
[1756795039887,0.34130536,110560.0,110550.0,0.94155788]
[1756795040293,0.33830536,110560.0,110550.0,1.02244532]
[1756795040492,0.14830536,110560.0,110550.0,1.02244532]
[1756795040890,0.14830536,110560.0,110550.0,0.78897744]
[1756795041096,0.14830536,110560.0,110550.0,0.94155788]
[1756795041289,0.14830536,110560.0,110550.0,1.02244532]
[1756795041895,0.14830536,110560.0,110550.0,1.00625894]
[1756795043001,0.01830536,110560.0,110550.0,1.09670884]
[1756795043490,0.61229997,110590.0,110560.0,0.03562]
[1756795043691,1.49569997,110590.0,110580.0,0.08343]
[1756795044597,1.49669997,110590.0,110580.0,0.08343]
[1756795044795,1.26323209,110590.0,110580.0,0.08343]
[1756795044999,1.49669997,110590.0,110580.0,0.08343]
[1756795045500,1.50069997,110590.0,110580.0,0.08343]
[1756795046294,1.50961084,110590.0,110580.0,0.08343]
[1756795046801,1.50861084,110590.0,110580.0,0.08343]
[1756795047002,1.51161084,110590.0,110580.0,0.08343]
[1756795049293,0.74474296,110590.0,110580.0,0.08343]
[1756795049494,1.83113084,110590.0,110580.0,0.08343]
[1756795049903,0.97821084,110590.0,110580.0,0.08343]
[1756795050103,1.59726296,110590.0,110580.0,0.08343]
[1756795050304,0.61741084,110590.0,110580.0,0.08343]
[1756795054208,0.38394296,110590.0,110580.0,0.08343]
[1756795054707,0.61741084,110590.0,110580.0,0.08343]
[1756795056100,0.61741084,110590.0,110570.0,0.72780297]
[1756795056302,0.61741084,110590.0,110570.0,0.49433509]
[1756795056904,0.23346788,110580.0,110570.0,0.49433509]
[1756795057106,0.56346788,110580.0,110570.0,0.49433509]
[1756795058207,0.56546788,110580.0,110570.0,0.49433509]
[1756795059208,0.56846788,110580.0,110570.0,0.49433509]
[1756795059408,0.335,110580.0,110570.0,0.49433509]
[1756795059609,0.56846788,110580.0,110570.0,0.49433509]
[1756795062411,0.56846788,110580.0,110570.0,0.44581]
[1756795063108,0.335,110580.0,110570.0,0.44581]
[1756795065409,0.335,110580.0,110570.0,0.51051106]
[1756795067214,0.56846788,110580.0,110570.0,0.51051106]
[1756795068912,0.335,110580.0,110570.0,0.51051106]
[1756795069111,0.335,110580.0,110570.0,0.52669744]
[1756795069312,0.335,110580.0,110570.0,0.44585]
[1756795070104,0.56846788,110580.0,110570.0,0.44585]
[1756795070302,0.56846788,110580.0,110570.0,0.51065615]
[1756795070514,0.56846788,110580.0,110570.0,0.47315615]
[1756795070714,0.56846788,110580.0,110570.0,0.51065615]
[1756795075220,0.335,110580.0,110570.0,0.51065615]
[1756795075418,0.56846788,110580.0,110570.0,0.51065615]
[1756795077013,0.335,110580.0,110570.0,0.51065615]
[1756795077214,0.56846788,110580.0,110570.0,0.51065615]
[1756795084025,0.335,110580.0,110570.0,0.51065615]
[1756795084326,0.56846788,110580.0,110570.0,0.51065615]
[1756795085421,0.8017349,110580.0,110570.0,0.51065615]
[1756795087534,0.8017349,110580.0,110570.0,0.14985615]
[1756795088023,0.335,110580.0,110570.0,0.14985615]
[1756795088322,0.8017349,110580.0,110570.0,0.14985615]
[1756795094736,0.335,110580.0,110570.0,0.14985615]
[1756795095033,0.335,110580.0,110570.0,0.3832236]
[1756795095236,0.8017349,110580.0,110570.0,0.3832236]
[1756795096034,0.8017349,110580.0,110570.0,0.67921745]
[1756795096435,0.8017349,110580.0,110570.0,0.44585]
[1756795096635,0.8017349,110580.0,110570.0,0.67921745]
[1756795097027,0.8017349,110580.0,110570.0,0.31841745]
[1756795097434,0.8017349,110580.0,110570.0,0.08505]
[1756795098429,0.335,110580.0,110570.0,0.08505]
[1756795098636,0.56836745,110580.0,110570.0,0.39930489]
[1756795099238,0.56836745,110580.0,110570.0,0.16593744]
[1756795099537,0.56836745,110580.0,110570.0,0.39930489]
[1756795099738,0.56836745,110580.0,110570.0,0.16593744]
[1756795100042,0.56836745,110580.0,110570.0,0.39930489]
[1756795101538,0.8017349,110580.0,110570.0,0.39930489]
[1756795102137,0.8017349,110580.0,110570.0,0.31841745]
[1756795104038,0.8017349,110580.0,110570.0,0.67921745]
[1756795105842,0.8017349,110580.0,110570.0,0.74406678]
[1756795106035,0.56836745,110580.0,110570.0,0.74406678]
[1756795106641,0.56836745,110580.0,110570.0,0.44585]
[1756795106845,0.335,110580.0,110570.0,0.44585]
[1756795107041,0.8017349,110580.0,110570.0,0.44585]
[1756795108340,0.8017349,110580.0,110570.0,0.52673744]
[1756795108541,0.8017349,110580.0,110570.0,0.40835]
[1756795108933,0.8017349,110580.0,110570.0,0.44412]
[1756795110144,0.8017349,110580.0,110570.0,0.50897097]
[1756795113246,0.35447976,110580.0,110570.0,0.67748745]
[1756795113448,0.58784721,110580.0,110570.0,0.67748745]
[1756795113644,0.56836745,110580.0,110570.0,0.67748745]
[1756795113841,0.56836745,110580.0,110570.0,0.44412]
[1756795114147,0.56836745,110580.0,110570.0,0.67748745]
[1756795114345,0.56836745,110580.0,110570.0,0.44412]
[1756795114646,0.56736745,110580.0,110570.0,0.67748745]
[1756795116246,0.56636745,110580.0,110570.0,0.67748745]
[1756795116448,0.56836745,110580.0,110570.0,0.67748745]
[1756795116939,0.335,110580.0,110570.0,1.03748745]
[1756795117646,0.56836745,110580.0,110570.0,0.67748745]
[1756795118148,0.56836745,110580.0,110570.0,0.44412]
[1756795118349,0.56836745,110580.0,110570.0,0.67748745]
[1756795118950,0.56736745,110580.0,110570.0,0.74233842]
[1756795119243,0.56436745,110580.0,110570.0,0.44412]
[1756795119448,0.56636745,110580.0,110570.0,0.67748745]
[1756795119643,0.56536745,110580.0,110570.0,0.67748745]
[1756795119850,0.56736745,110580.0,110570.0,0.67748745]
[1756795120446,0.335,110580.0,110570.0,0.67748745]
[1756795120750,0.56836745,110580.0,110570.0,1.00748745]
[1756795121048,0.56836745,110580.0,110570.0,0.44412]
[1756795121242,0.56836745,110580.0,110570.0,0.67748745]
[1756795121443,0.56836745,110580.0,110570.0,0.74232758]
[1756795122349,0.56836745,110580.0,110570.0,0.50896013]
[1756795122552,0.56536745,110580.0,110570.0,0.50896013]
[1756795122742,0.56536745,110580.0,110570.0,0.74232758]
[1756795122946,0.56636745,110580.0,110570.0,0.67748745]
[1756795123144,0.56436745,110580.0,110570.0,0.67748745]
[1756795123451,0.8007349,110580.0,110570.0,1.52144745]
[1756795123651,0.8017349,110580.0,110570.0,1.52144745]
[1756795124151,0.56836745,110580.0,110570.0,1.52144745]
[1756795125251,0.56836745,110580.0,110570.0,1.28808]
[1756795125549,0.56736745,110580.0,110570.0,1.52144745]
[1756795125750,0.56736745,110580.0,110570.0,1.60233489]
[1756795125945,0.56636745,110580.0,110570.0,1.60233489]
[1756795126750,0.56836745,110580.0,110570.0,1.60233489]
[1756795127559,0.56836745,110580.0,110570.0,1.58627651]
[1756795128756,0.335,110580.0,110570.0,0.74231651]
[1756795129059,0.56836745,110580.0,110570.0,1.58575651]
[1756795129261,0.56836745,110580.0,110570.0,0.74231651]
[1756795129556,0.56836745,110580.0,110570.0,1.58575651]
[1756795130659,0.56836745,110580.0,110570.0,1.35238906]
[1756795130961,0.56836745,110580.0,110570.0,1.58575651]
[1756795131257,0.56836745,110580.0,110570.0,0.50894906]
[1756795131456,0.56836745,110580.0,110570.0,1.58575651]
[1756795132855,0.56836745,110580.0,110570.0,0.74231651]
[1756795133056,0.56836745,110580.0,110570.0,1.58539651]
[1756795134161,0.56836745,110580.0,110570.0,1.52056745]
[1756795134858,0.56836745,110580.0,110570.0,1.2872]
[1756795135058,0.56836745,110580.0,110570.0,1.60145489]
[1756795135557,0.56836745,110580.0,110570.0,1.60117489]
[1756795136462,0.56836745,110580.0,110570.0,1.36780744]
[1756795136664,0.335,110580.0,110570.0,1.60117489]
[1756795136856,0.56836745,110580.0,110570.0,1.60117489]
[1756795137163,0.56836745,110580.0,110570.0,1.52028745]
[1756795137959,0.56836745,110580.0,110570.0,1.52160745]
[1756795138565,0.56836745,110580.0,110570.0,0.67748745]
[1756795138756,0.56836745,110580.0,110570.0,0.44412]
[1756795138959,0.8017349,110580.0,110570.0,1.28808]
[1756795139156,0.8017349,110580.0,110570.0,1.52144745]
[1756795140164,0.56836745,110580.0,110570.0,1.52144745]
[1756795141668,0.56836745,110580.0,110570.0,0.67748745]
[1756795141864,0.56836745,110580.0,110570.0,1.52128745]
[1756795142968,0.335,110580.0,110570.0,1.54130292]
[1756795143262,0.56836745,110580.0,110570.0,1.54098292]
[1756795143566,0.335,110580.0,110570.0,1.54098292]
[1756795143769,0.56836745,110580.0,110570.0,1.54098292]
[1756795144572,0.56836745,110580.0,110570.0,1.62187036]
[1756795144777,0.56836745,110580.0,110570.0,1.62243036]
[1756795144961,0.56836745,110580.0,110570.0,0.77839036]
[1756795145166,0.56836745,110580.0,110570.0,1.62199036]
[1756795145670,0.334,110580.0,110570.0,2.35447037]
[1756795145867,0.332,110580.0,110570.0,2.35447037]
[1756795146174,0.332,110580.0,110570.0,2.46771278]
[1756795146175,0.333,110580.0,110570.0,2.46771278]
[1756795146372,0.333,110580.0,110570.0,2.54868012]
[1756795146675,0.333,110580.0,110570.0,2.18187026]
[1756795146872,0.332,110580.0,110570.0,2.18187026]
[1756795147076,0.333,110580.0,110570.0,2.25187026]
[1756795147467,0.333,110580.0,110570.0,0.79510281]
[1756795147771,0.333,110580.0,110570.0,1.87142587]
[1756795147963,0.333,110580.0,110570.0,1.02838587]
[1756795148164,0.333,110580.0,110570.0,1.87146587]
[1756795148673,0.083,110580.0,110570.0,1.87146587]
[1756795149564,0.083,110580.0,110570.0,1.63818281]
[1756795149876,0.083,110580.0,110570.0,1.79049853]
[1756795150974,0.083,110580.0,110570.0,1.86239514]
[1756795153277,0.083,110580.0,110570.0,0.78603208]
[1756795153583,0.58628306,110580.0,110570.0,1.30645547]
[1756795153883,0.58628306,110580.0,110570.0,1.37118968]
[1756795155184,0.29628306,110580.0,110570.0,1.37118968]
[1756795156179,0.063,110580.0,110570.0,1.37118968]
[1756795156392,0.063,110580.0,110570.0,1.37114968]
[1756795156584,0.353,110580.0,110570.0,1.37114968]
[1756795156888,0.353,110580.0,110570.0,1.30641547]
[1756795157686,0.003,110580.0,110570.0,1.30641547]
[1756795157889,0.093,110580.0,110570.0,1.30641547]
[1756795158686,0.093,110580.0,110570.0,1.53969853]
[1756795159289,0.093,110580.0,110570.0,1.30641547]
[1756795159484,0.093,110580.0,110570.0,1.53969853]
[1756795159790,0.091,110580.0,110570.0,1.62066587]
[1756795160791,0.09,110580.0,110570.0,1.62066587]
[1756795161795,0.091,110580.0,110570.0,1.62066587]
[1756795162896,0.093,110580.0,110570.0,1.62066587]
[1756795163394,0.091,110580.0,110570.0,1.62066587]
[1756795163694,0.09,110580.0,110570.0,1.62066587]
[1756795165589,0.09,110580.0,110570.0,0.77838587]
[1756795165794,0.09,110580.0,110570.0,1.62290587]
[1756795166998,0.09,110580.0,110570.0,1.38962281]
[1756795167199,0.09,110580.0,110570.0,1.62290587]
[1756795167702,0.09,110580.0,110570.0,1.38962281]
[1756795168002,0.09,110580.0,110570.0,1.62290587]
[1756795175509,0.09,110580.0,110570.0,1.54193853]
[1756795175811,0.09,110580.0,110570.0,1.65518094]
[1756795178112,0.09,110580.0,110570.0,1.42189788]
[1756795178314,0.23,110580.0,110570.0,1.65623094]
[1756795179914,0.23,110580.0,110570.0,2.01703094]
[1756795180515,0.23,110580.0,110570.0,2.01611094]
[1756795180717,0.23,110580.0,110570.0,2.01607094]
[1756795181313,0.23,110580.0,110570.0,1.90282853]
[1756795182415,0.23,110580.0,110570.0,1.98381819]
[1756795182914,0.231,110580.0,110570.0,1.75053513]
[1756795183113,0.231,110580.0,110570.0,1.98381819]
[1756795183910,0.232,110580.0,110570.0,1.98381819]
[1756795184311,0.23,110580.0,110570.0,1.98381819]
[1756795187121,0.23,110580.0,110570.0,1.75053513]
[1756795187416,0.23,110580.0,110570.0,1.98381819]
[1756795189321,0.23,110580.0,110570.0,1.90282853]
[1756795189626,0.23,110580.0,110570.0,1.66954547]
[1756795189913,0.23,110580.0,110570.0,1.90282853]
[1756795191315,0.23,110580.0,110570.0,1.98382227]
[1756795192616,0.23,110580.0,110570.0,1.90282853]
[1756795193017,0.23,110580.0,110570.0,2.01607094]
[1756795193215,0.23,110580.0,110570.0,1.78278788]
[1756795193410,0.23,110580.0,110570.0,2.01607094]
[1756795194019,0.23,110580.0,110570.0,2.09706226]
[1756795194220,0.23,110580.0,110570.0,1.98381985]
[1756795194723,0.23328306,110590.0,110570.0,1.94699985]
[1756795194925,0.56328306,110590.0,110580.0,0.44585]
[1756795196925,0.56628306,110590.0,110580.0,0.44585]
[1756795197529,0.333,110590.0,110580.0,0.44585]
[1756795197731,0.56628306,110590.0,110580.0,0.44585]
[1756795200232,0.333,110590.0,110580.0,0.76955876]
[1756795200732,0.333,110590.0,110580.0,1.10055008]
[1756795200933,0.333,110590.0,110580.0,1.01955876]
[1756795201234,0.333,110590.0,110580.0,1.10051954]
[1756795201533,0.333,110590.0,110580.0,1.01955876]
[1756795202228,0.333,110590.0,110580.0,1.10051954]
[1756795202539,0.332,110590.0,110580.0,1.01955876]
[1756795203337,0.33,110590.0,110580.0,1.3338026]
[1756795203843,0.33,110590.0,110580.0,1.86091876]
[1756795204041,0.33,110590.0,110580.0,1.86083876]
[1756795204246,0.33,110590.0,110580.0,1.86243876]
[1756795204641,0.04,110590.0,110580.0,1.82561876]
[1756795204844,0.04,110590.0,110580.0,1.01955876]
[1756795205042,0.04,110590.0,110580.0,1.86239876]
[1756795205240,0.04,110590.0,110580.0,1.8716326]
[1756795205636,0.04,110590.0,110580.0,1.95259338]
[1756795206040,0.04,110590.0,110580.0,1.8716326]
[1756795206342,0.04,110590.0,110580.0,1.95248407]
[1756795207041,0.04,110590.0,110580.0,2.02455498]
[1756795209041,0.04,110590.0,110580.0,2.38535498]
[1756795209442,0.04,110590.0,110580.0,2.61853508]
[1756795209642,0.26080287,110610.0,110600.0,0.01351]
[1756795209947,0.61080287,110610.0,110600.0,0.75734921]
[1756795210547,0.35,110610.0,110600.0,0.92592316]
[1756795210945,0.353,110610.0,110600.0,0.92592316]
[1756795211246,0.353,110610.0,110600.0,0.69269158]
[1756795211746,0.353,110610.0,110600.0,0.92592316]
[1756795212045,0.355,110610.0,110600.0,0.92592316]
[1756795212751,0.355,110610.0,110600.0,0.99058079]
[1756795213450,0.355,110610.0,110600.0,1.83202079]
[1756795214550,0.58823158,110610.0,110600.0,1.83202079]
[1756795214751,0.355,110610.0,110600.0,1.83202079]
[1756795215050,0.355,110610.0,110600.0,1.36539763]
[1756795215253,0.58823158,110610.0,110600.0,1.36511763]
[1756795215753,0.58823158,110610.0,110600.0,1.59834921]
[1756795218554,0.355,110610.0,110600.0,0.99058079]
[1756795218853,0.58823158,110610.0,110600.0,1.83130079]
[1756795219256,0.58823158,110610.0,110600.0,1.36455763]
[1756795219454,0.58823158,110610.0,110600.0,1.59778921]
[1756795220555,0.355,110610.0,110600.0,1.83102079]
[1756795220953,0.355,110610.0,110600.0,1.36455763]
[1756795221154,0.355,110610.0,110600.0,1.83102079]
[1756795221654,0.355,110610.0,110600.0,1.36455763]
[1756795221849,0.355,110610.0,110600.0,1.83102079]
[1756795225963,0.355,110610.0,110600.0,1.76636316]
[1756795227556,0.355,110610.0,110600.0,1.84721463]
[1756795229050,0.355,110610.0,110600.0,1.76636316]
[1756795231156,0.355,110610.0,110600.0,1.38075147]
[1756795231460,0.355,110610.0,110600.0,1.84721463]
[1756795232661,0.355,110610.0,110600.0,1.85677256]
[1756795233849,0.355,110610.0,110600.0,1.92150634]
[1756795237666,0.355,110610.0,110600.0,2.28230634]
[1756795237860,0.355,110610.0,110600.0,2.21757256]
[1756795238261,0.355,110610.0,110600.0,2.29842403]
[1756795238970,0.355,110610.0,110600.0,2.20801463]
[1756795239969,0.355,110610.0,110600.0,2.29842403]
[1756795241872,0.355,110610.0,110600.0,1.83196087]
[1756795242169,0.355,110610.0,110600.0,2.29842403]
[1756795246174,0.355,110610.0,110600.0,1.83196087]
[1756795246378,0.355,110610.0,110600.0,2.20801463]
[1756795248572,0.355,110610.0,110600.0,2.31844151]
[1756795248877,0.355,110610.0,110600.0,1.77112688]
[1756795249075,0.355,110610.0,110600.0,2.31844151]
[1756795249278,0.005,110610.0,110600.0,2.72082162]
[1756795249579,0.005,110610.0,110600.0,2.10209108]
[1756795249778,0.005,110610.0,110600.0,2.72082162]
[1756795250276,0.005,110610.0,110600.0,2.72746162]
[1756795250479,0.005,110610.0,110600.0,1.88038162]
[1756795250681,0.005,110610.0,110600.0,2.72746162]
[1756795250881,4.619e-05,110610.0,110600.0,2.72746162]
[1756795251079,0.00204619,110610.0,110600.0,2.72746162]
[1756795252084,0.00204619,110610.0,110600.0,2.88990971]
[1756795252274,0.01854442,110640.0,110630.0,0.08269]
[1756795252488,0.38854442,110640.0,110630.0,1.91237766]
[1756795252984,0.38854442,110640.0,110630.0,0.5170599]
[1756795253190,0.38854442,110640.0,110630.0,1.83076306]
[1756795253494,0.39154442,110640.0,110630.0,1.83076306]
[1756795253797,0.39554442,110640.0,110630.0,1.59753148]
[1756795253984,0.39554442,110640.0,110630.0,1.07390796]
[1756795254190,0.39554442,110640.0,110630.0,1.92130796]
[1756795254390,0.02554442,110640.0,110630.0,1.92130796]
[1756795254594,0.02554442,110640.0,110630.0,1.93744787]
[1756795255495,0.02454442,110640.0,110630.0,1.09004787]
[1756795255694,0.006,110640.0,110630.0,1.09004787]
[1756795255898,0.006,110640.0,110630.0,1.93716787]
[1756795256297,0.002,110640.0,110630.0,1.09004787]
[1756795256500,0.004,110640.0,110630.0,1.85638836]
[1756795257301,0.004,110640.0,110630.0,1.00934836]
[1756795257603,0.004,110640.0,110630.0,1.07375986]
[1756795257794,0.004,110640.0,110630.0,1.4538967]
[1756795257996,0.004,110640.0,110630.0,1.92035986]
[1756795258401,0.004,110640.0,110630.0,0.68573188]
[1756795258699,0.004,110640.0,110630.0,1.76536346]
[1756795258902,0.004,110640.0,110630.0,1.85574836]
[1756795259097,0.004,110640.0,110630.0,1.00934836]
[1756795259299,0.004,110640.0,110630.0,1.85574836]
[1756795259703,0.004,110640.0,110630.0,1.85542836]
[1756795260606,0.004,110640.0,110630.0,1.00934836]
[1756795261109,0.004,110640.0,110630.0,1.76488346]
[1756795261311,0.004,110640.0,110630.0,1.85526836]
[1756795261502,0.004,110640.0,110630.0,1.00934836]
[1756795261701,0.004,110640.0,110630.0,1.85518836]
[1756795262899,0.004,110640.0,110630.0,1.00934836]
[1756795263202,0.004,110640.0,110630.0,1.85558836]
[1756795264206,0.281936,110680.0,110670.0,0.08269]
[1756795264400,0.281936,110680.0,110670.0,1.16388158]
[1756795264401,0.41870442,110680.0,110670.0,1.16388158]
[1756795264800,0.651936,110680.0,110670.0,1.16388158]
[1756795265001,0.66870442,110680.0,110670.0,1.16388158]
[1756795265305,0.901936,110680.0,110670.0,1.16388158]
[1756795265500,0.904936,110680.0,110670.0,1.16388158]
[1756795265805,0.67170442,110680.0,110670.0,1.16388158]
[1756795266206,0.42170442,110680.0,110670.0,1.52468158]
[1756795266404,0.42170442,110680.0,110670.0,1.57292991]
[1756795266598,0.42170442,110680.0,110670.0,1.89651369]
[1756795267305,0.42170442,110680.0,110670.0,1.75791316]
[1756795267501,0.42170442,110680.0,110670.0,1.80616149]
[1756795267705,0.42170442,110680.0,110670.0,1.87760279]
[1756795267904,0.42170442,110680.0,110670.0,1.96795499]
[1756795268104,0.42170442,110680.0,110670.0,1.97704775]
[1756795268307,0.42170442,110680.0,110670.0,0.99048722]
[1756795268504,0.42170442,110680.0,110670.0,1.83820722]
[1756795268696,0.42170442,110680.0,110670.0,1.88645555]
[1756795268902,0.42170442,110680.0,110670.0,1.97680775]
[1756795269302,0.42170442,110680.0,110670.0,1.92855942]
[1756795270108,0.42170442,110680.0,110670.0,1.83820722]
[1756795270302,0.42170442,110680.0,110670.0,1.59528288]
[1756795270809,0.42170442,110680.0,110670.0,1.59508288]
[1756795271009,0.654936,110680.0,110670.0,1.59508288]
[1756795271209,0.42170442,110680.0,110670.0,1.59508288]
[1756795271405,0.42170442,110680.0,110670.0,1.59474589]
[1756795273116,0.42170442,110680.0,110670.0,0.74782589]
[1756795273413,0.42170442,110680.0,110670.0,1.59414589]
[1756795273708,0.42170442,110680.0,110670.0,0.74782589]
[1756795273911,0.05170442,110680.0,110670.0,1.59398589]
[1756795274218,0.05170442,110680.0,110670.0,1.59378589]
[1756795275107,0.00170442,110680.0,110670.0,1.59378589]
[1756795275316,0.08170442,110680.0,110670.0,1.59378589]
[1756795276609,0.08170442,110680.0,110670.0,1.59318589]
[1756795277010,0.08170442,110680.0,110670.0,1.64143422]
[1756795277918,0.08,110680.0,110670.0,1.64143422]
[1756795278112,0.08,110680.0,110670.0,1.64243422]
[1756795278807,0.08,110680.0,110670.0,1.40961963]
[1756795279007,0.08,110680.0,110670.0,1.64451422]
[1756795279204,0.08,110680.0,110670.0,1.41161963]
[1756795279412,0.08,110680.0,110670.0,1.64451422]
[1756795280017,0.08,110680.0,110670.0,1.41161963]
[1756795280218,0.08,110680.0,110670.0,1.64451422]
[1756795281612,0.08,110680.0,110670.0,1.41161963]
[1756795281818,0.08,110680.0,110670.0,1.64451422]
[1756795282018,0.08,110680.0,110670.0,1.64395422]
[1756795282218,0.56289459,110680.0,110670.0,0.49473833]
[1756795282422,0.56289459,110680.0,110670.0,0.97833833]
[1756795282617,0.56289459,110680.0,110670.0,0.93009]
[1756795282920,0.81289459,110680.0,110670.0,0.08569]
[1756795283419,0.81289459,110680.0,110670.0,0.97809833]
[1756795283620,0.25,110680.0,110670.0,0.97809833]
[1756795283920,0.56289459,110680.0,110670.0,0.97797833]
[1756795285322,0.56289459,110680.0,110670.0,0.13393833]
[1756795285617,0.83289459,110680.0,110670.0,0.13393833]
[1756795286023,1.19369459,110680.0,110670.0,0.08569]
[1756795286426,1.19369459,110680.0,110670.0,0.003]
[1756795286616,1.4462718,110680.0,110670.0,0.003]
[1756795286816,2.2911518,110680.0,110670.0,0.003]
[1756795287024,2.2921518,110680.0,110670.0,0.002]
[1756795287222,2.05925721,110680.0,110650.0,0.95603833]
[1756795287530,0.46578918,110660.0,110640.0,0.04824833]
[1756795287826,1.67154918,110650.0,110610.0,0.01264841]
[1756795288026,1.67154918,110650.0,110590.0,0.08534]
[1756795288027,0.95449459,110620.0,110590.0,0.08534]
[1756795288327,0.95449459,110620.0,110600.0,0.08534]
[1756795288328,0.59369459,110610.0,110600.0,0.08534]
[1756795288520,0.93369459,110610.0,110600.0,0.08534]
[1756795289523,1.00504446,110610.0,110600.0,0.04806]
[1756795289723,1.00604446,110610.0,110600.0,0.04806]
[1756795290219,1.00704446,110610.0,110600.0,0.08534]
[1756795291126,1.00704446,110610.0,110600.0,0.04806]
[1756795291629,1.01609377,110610.0,110600.0,0.04806]
[1756795292122,1.86093377,110610.0,110600.0,0.04806]
[1756795292324,1.86093377,110610.0,110600.0,0.08534]
[1756795292627,1.86093377,110610.0,110600.0,0.04806]
[1756795293232,1.00704446,110610.0,110600.0,0.04806]
[1756795293821,0.77414987,110610.0,110600.0,0.08534]
[1756795294026,1.00704446,110610.0,110600.0,0.10004]
[1756795294926,1.00704446,110610.0,110600.0,0.04806]
[1756795295131,1.01615663,110610.0,110600.0,0.04806]
[1756795295930,1.01615663,110610.0,110600.0,0.08487]
[1756795297031,0.78326204,110610.0,110600.0,0.04806]
[1756795297332,1.01615663,110610.0,110600.0,0.04806]
[1756795297928,1.24905122,110610.0,110600.0,0.04806]
[1756795298437,0.78326204,110610.0,110600.0,0.08487]
[1756795298638,1.01615663,110610.0,110600.0,0.08487]
[1756795299529,1.86283663,110610.0,110600.0,0.08487]
[1756795300029,1.62994204,110610.0,110600.0,0.08487]
[1756795300336,1.86283663,110610.0,110600.0,0.08487]
[1756795300638,1.86283663,110610.0,110600.0,0.04806]
[1756795301025,1.86283663,110610.0,110600.0,0.08487]
[1756795302132,1.62994204,110610.0,110600.0,0.08487]
[1756795302334,1.86283663,110610.0,110600.0,0.08487]
[1756795302735,1.62994204,110610.0,110600.0,0.08487]
[1756795303038,1.86255663,110610.0,110600.0,0.08487]
[1756795309939,1.50175663,110610.0,110600.0,0.08487]
[1756795310141,1.86255663,110610.0,110600.0,0.08487]
[1756795312233,1.62966204,110610.0,110600.0,0.04806]
[1756795312434,1.86255663,110610.0,110600.0,0.04806]
[1756795313034,2.09545122,110610.0,110600.0,0.04806]
[1756795313238,2.09545122,110610.0,110590.0,0.08551]
[1756795313539,0.23289459,110600.0,110590.0,0.08551]
[1756795313740,0.97369459,110600.0,110590.0,0.0487]
[1756795314042,1.81733459,110600.0,110580.0,0.10594137]
[1756795314237,0.23289459,110590.0,110580.0,0.10594137]
[1756795314445,0.58289459,110590.0,110580.0,0.10594137]
[1756795315941,0.58289459,110590.0,110580.0,0.10794137]
[1756795316246,0.58289459,110590.0,110580.0,0.10894137]
[1756795317344,0.60353092,110590.0,110580.0,0.10894137]
[1756795318338,0.60353092,110590.0,110580.0,0.003]
[1756795318645,1.21553919,110590.0,110580.0,0.003]
[1756795318935,0.9826446,110590.0,110580.0,0.003]
[1756795319140,1.21553919,110590.0,110580.0,0.003]
[1756795321635,0.9826446,110590.0,110580.0,0.003]
[1756795322241,1.46553919,110590.0,110580.0,0.003]
[1756795322647,2.0773246,110590.0,110580.0,0.003]
[1756795323642,1.2326446,110590.0,110580.0,0.003]
[1756795323837,2.0773246,110590.0,110580.0,0.003]
[1756795324341,1.2326446,110590.0,110580.0,0.003]
[1756795324545,2.0778046,110590.0,110580.0,0.003]
[1756795325532,0.74975001,110590.0,110580.0,0.33726]
[1756795325732,1.59463001,110590.0,110580.0,0.33726]
[1756795325936,1.80688827,110590.0,110580.0,0.33726]
[1756795328253,1.80688827,110590.0,110580.0,0.253]
[1756795328450,2.06022522,110590.0,110580.0,0.003]
[1756795328753,2.31022522,110590.0,110580.0,0.003]
[1756795331858,1.46534522,110590.0,110580.0,0.003]
[1756795332044,2.30946522,110590.0,110580.0,0.003]